Cogmind - Beta 13 @@@ ROGUE MODE // 2024.04.01 @ 00:39:11 Player: gabr Result: Destroyed by as-42569 with Assembled Blade Performance ------------- Evolutions (1) 500 Regions Visited (3) 600 Robots Destroyed (14) 70 Value Destroyed (288) 288 Prototype IDs (1) 20 Alien Tech Used (0) 0 Bonus (0) 0 TOTAL SCORE: 1478 Bonus ------- None Cogmind --------- Core Integrity 0/400 Matter 248/300 Energy 51/100 System Corruption 5% Temperature Cool (0) Movement Flying (40) Location -9/Mines Parts ------- > --- POWER (1) -------- (None) > --- PROPULSION (2) --- Flight Unit > --- UTILITY (4) ------ (None) > --- WEAPON (2) ------- (None) > --- INVENTORY (5) ---- Light Deuterium Engine Grenade Launcher Peak State ------------ > --- POWER ------------ Light Deuterium Engine > --- PROPULSION ------- Flight Unit Flight Unit > --- UTILITY ---------- Visual Processing Unit Improved Terrain Scanner > --- WEAPON ----------- Small Laser Rocket Launcher > --- INVENTORY -------- Light Deuterium Engine Flight Unit Flight Unit Flight Unit Grenade Launcher [Rating: 13] Favorites ----------- Power Ion Engine Engine Ion Engine Propulsion Aluminum Leg Leg Aluminum Leg Flight Unit Flight Unit Utility Small Storage Unit Device Improved Terrain Scanner Storage Small Storage Unit Processor Visual Processing Unit Weapon Assault Rifle Energy Gun Small Laser Ballistic Gun Assault Rifle Launcher Rocket Launcher Build | -11 -10 -9 -9 ------- Run | Yrd Mat Mat Min Slots Evolved 2 | . . 2 . Power . | . . . . Propulsion . | . . . . Utility 2 | . . 2 . Weapon . | . . . . Parts Attached 29 | 6 9 7 7 Power 7 | 1 3 3 . Engine 7 | 1 3 3 . Core . | . . . . Reactor . | . . . . Propulsion 9 | 2 4 . 3 Treads . | . . . . Leg 2 | 2 . . . Wheel . | . . . . Hover . | . . . . Flight 7 | . 4 . 3 Utility 4 | 1 . 2 1 Device 2 | . . 1 1 Storage 1 | 1 . . . Processor 1 | . . 1 . Hackware . | . . . . Protection . | . . . . Artifact . | . . . . Weapon 9 | 2 2 2 3 Energy Gun 3 | . . 2 1 Energy Cannon . | . . . . Ballistic Gun 4 | 2 2 . . Ballistic Cannon . | . . . . Launcher 2 | . . . 2 Special Weapon . | . . . . Impact Weapon . | . . . . Slashing Weapon . | . . . . Piercing Weapon . | . . . . Special Melee Weapon . | . . . . Unidentified Prototypes 1 | . . 1 . Parts Lost 12 | . 1 3 8 Power 2 | . . 1 1 Propulsion 5 | . 1 . 4 Utility 3 | . . 1 2 Weapon 2 | . . 1 1 Highest Loss Streak 6 | . 1 3 6 To Critical Strikes . | . . . . Average Slot Usage (%) 62 | . 74 51 52 Engine 11 | . 14 10 7 Leg 5 | . 10 . . Flight 18 | . 16 22 18 Device 2 | . . 3 5 Storage 2 | . 5 . . Processor 3 | . . 3 11 Energy Gun 4 | . . 10 8 Ballistic Gun 13 | . 26 1 . Naked Turns . | . . . . Heaviest Build 14 | 14 14 10 7 Greatest Support 20 | 20 20 8 8 Greatest Overweight (x) 2 | . 2 1 . Average Overweight (x) . | . . . . Largest Inventory Capacity 8 | 8 8 5 5 Average Capacity 6 | 7 6 5 5 Most Carried 5 | 4 5 5 5 Average Carried 3 | 3 4 4 4 Final Capacity 8 | 8 5 5 5 Final Carried 5 | 3 5 5 2 Class Distribution -------------------- 84% | Mutant 15% | Scavenger-Mutant Dominant Class ---------------- Mutant | -10/Materials Mutant | -9/Materials Mutant | -9/Mines Resources | -11 -10 -9 -9 ----------- Run | Yrd Mat Mat Min Matter Collected 537 | 284 101 26 126 Remotely . | . . . . Salvage Created 396 | 60 89 152 95 Parts 31 | 3 13 10 5 Haulers Intercepted . | . . . . Recyclers Shooed . | . . . . Parts Field Recycled . | . . . . Retrieved Matter . | . . . . Parts Self-Destructed . | . . . . Prevented . | . . . . Kills | -11 -10 -9 -9 ------- Run | Yrd Mat Mat Min Combat Hostiles Destroyed 9 | . 5 1 3 Guns 5 | . 5 . . AOE 4 | . . 1 3 Classes Destroyed 7 | 2 1 2 2 Worker 1 | 1 . . . Tunneler 1 | . . . 1 Recycler 2 | 1 . 1 . Watcher 1 | . . 1 . Swarmer 5 | . 5 . . Grunt 3 | . . . 3 Duelist 1 | . . 1 . Best Kill Streak 3 | 1 2 2 3 Combat Bots Only 3 | . 2 1 3 Max Kills in Single Turn 1 | 1 1 1 1 Gunslinging . | . . . . Exploded 1 | . . 1 1 Melee . | . . . . Uniques/NPCs Destroyed . | . . . . Combat | -11 -10 -9 -9 -------- Run | Yrd Mat Mat Min Hostile Shots Fired 112 | . 38 19 55 Missed 44 | . 13 9 22 Damage Taken 1033 | . 196 196 641 Core 514 | . 90 45 379 Absorbed by Shields . | . . . . Core Remaining (%) 82 | 100 64 . . Volleys Fired 40 | 4 17 8 11 Largest 2 | 2 2 1 2 Hottest 73 | 40 40 45 73 Shots Fired 60 | 8 27 8 17 Gun 54 | 8 27 8 11 Cannon . | . . . . Launcher 6 | . . . 6 Special . | . . . . Kinetic 35 | 8 27 . . Thermal 11 | . . . 11 Explosive 6 | . . . 6 Electromagnetic 8 | . . 8 . Robot Hit Streak 4 | 2 3 3 4 Robot Miss Streak 4 | 2 4 4 3 Penetration Max . | . . . . Secondary Targets . | . . . . Shots Hit Robots 30 | 4 10 6 10 Core Hits 20 | 3 6 5 6 Critical Kills . | . . . . Critical Parts Destroyed . | . . . . Critical Strikes . | . . . . Melee Attacks . | . . . . Impact . | . . . . Slashing . | . . . . Piercing . | . . . . Sneak Attacks . | . . . . Combat Hostiles . | . . . . Follow-up Attacks . | . . . . Damage Inflicted 673 | 52 127 112 382 Guns 340 | 52 127 79 82 Cannons . | . . . . Explosions 333 | . . 33 300 Melee . | . . . . Ramming . | . . . . Kinetic 179 | 52 127 . . Thermal 115 | . . 33 82 Explosive 300 | . . . 300 Electromagnetic 79 | . . 79 . Impact . | . . . . Slashing . | . . . . Piercing . | . . . . Highest Corruption . | . . . . Average Corruption . | . . . . Corruption Purged . | . . . . Corruption Blocked . | . . . . Overload Shots . | . . . . Overflow Damage 13 | . . . 13 Projectiles . | . . . . Explosions 13 | . . . 13 Melee . | . . . . Knockbacks . | . . . . Impact . | . . . . Kinetic . | . . . . Secondary . | . . . . Self-Inflicted Damage 108 | . . 36 72 Shots 4 | . . 1 3 Rammed . | . . . . Targets Rammed . | . . . . Kicked . | . . . . Crushed . | . . . . Highest Temperature 69 | . 8 10 69 Average Temperature 16 | . 3 2 30 Received Heat Transfer 157 | . . 36 121 Siege Activations . | . . . . Robots Corrupted . | . . . . Combat Hostiles . | . . . . Parts Fried . | . . . . Impact Corruptions . | . . . . Robots Melted . | . . . . Combat Hostiles . | . . . . Parts Melted . | . . . . Heat Transferred 225 | . . 50 175 Parts Sabotaged . | . . . . Parts Stolen . | . . . . Parts Stripped . | . . . . Power Chain Reactions 1 | . . 1 . Alert | -11 -10 -9 -9 ------- Run | Yrd Mat Mat Min Peak Influence 215 | 10 161 171 215 Initial 67 | . 6 67 62 Average 57 | 6 81 103 111 Maximum Alert Level 1 | . . . 1 Low Security (%) 96 | 100 100 100 76 Level 1 3 | . . . 23 Level 2 . | . . . . Level 3 . | . . . . Level 4 . | . . . . Level 5 . | . . . . High Security . | . . . . Max Security . | . . . . Squads Dispatched . | . . . . Investigation . | . . . . Extermination . | . . . . Reinforcement . | . . . . Assault . | . . . . Garrison . | . . . . Intercept . | . . . . Searches Triggered . | . . . . Construction Impeded . | . . . . Haulers Reinforced . | . . . . Active Scanning Responses . | . . . . Cargo Convoy Interrupts . | . . . . Stealth | -11 -10 -9 -9 --------- Run | Yrd Mat Mat Min Distress Signals 1 | . 1 . . Communications Jammed . | . . . . Distress Signals . | . . . . Times Spotted 34 | . 10 5 19 Peak Tracking Total 18 | . 3 3 18 Tactical Retreats 3 | . 2 . 1 Traps | -11 -10 -9 -9 ------- Run | Yrd Mat Mat Min Traps Triggered . | . . . . Indirectly . | . . . . Trap Hack Attempts . | . . . . Triggered . | . . . . Disarmed . | . . . . Reprogrammed . | . . . . Reused . | . . . . Traps Extracted . | . . . . Installed . | . . . . Triggered . | . . . . Machines | -11 -10 -9 -9 ---------- Run | Yrd Mat Mat Min Machines Disabled 4 | . . 1 3 Max in Single Turn 2 | . . 1 2 Machines Repaired . | . . . . Machines Dismantled . | . . . . Machines Sabotaged . | . . . . Overloaded Fab Kills . | . . . . Hacking | -11 -10 -9 -9 --------- Run | Yrd Mat Mat Min Machines Accessed 1 | . 1 . . Terminals . | . . . . Fabricators . | . . . . Repair Stations . | . . . . Recycling Units 1 | . 1 . . Scanalyzers . | . . . . Garrison Access . | . . . . Total Hacks 1 | . 1 . . Successful 1 | . 1 . . Failed . | . . . . Catastrophic . | . . . . Database Lockouts . | . . . . Manual . | . . . . Terminals . | . . . . Fabricators . | . . . . Repair Stations . | . . . . Recycling Units 1 | . 1 . . Scanalyzers . | . . . . Garrison Access . | . . . . Terminal Hacks . | . . . . Fabricator Hacks . | . . . . Repair Station Hacks . | . . . . Recycling Unit Hacks 1 | . 1 . . Report Inventory 1 | . 1 . . Scanalyzer . | . . . . Garrison Access Hacks . | . . . . Unauthorized Hacks . | . . . . Terminals . | . . . . Fabricators . | . . . . Repair Stations . | . . . . Recycling Units . | . . . . Scanalyzers . | . . . . Garrison Access . | . . . . Data Cores Recovered . | . . . . Used . | . . . . Hacking Detections . | . . . . Full Trace Events . | . . . . Feedback Events . | . . . . Feedback Blocked . | . . . . Robot Schematics Acquired . | . . . . Robots Built . | . . . . Authchips . | . . . . Time . | . . . . Total Robot Build Rating . | . . . . Part Schematics Acquired . | . . . . Parts Built . | . . . . Authchips . | . . . . Time . | . . . . Total Part Build Rating . | . . . . Parts Repaired . | . . . . Time . | . . . . Parts Recycled . | . . . . Recycled Matter . | . . . . Retrieved Matter . | . . . . Retrieved Components . | . . . . Parts Scanalyzed . | . . . . Part Schematics Acquired . | . . . . Parts Damaged . | . . . . Bothacking | -11 -10 -9 -9 ------------ Run | Yrd Mat Mat Min Used RIF Installer . | . . . . Robots Hacked . | . . . . Non-combat . | . . . . Combat . | . . . . Robot Hacks Applied . | . . . . Relay Couplers Released . | . . . . Fabnet Peak Effective % . | . . . . Robots Rewired . | . . . . Allies Hacked . | . . . . Hacks Repelled . | . . . . Allies | -11 -10 -9 -9 -------- Run | Yrd Mat Mat Min Total Allies . | . . . . Largest Group . | . . . . Highest-Rated Group . | . . . . Highest-Rated Ally . | . . . . Total Orders . | . . . . Ally Attacks . | . . . . Total Damage . | . . . . Kills . | . . . . Allies Corrupted . | . . . . Allies Melted . | . . . . Intel | -11 -10 -9 -9 ------- Run | Yrd Mat Mat Min Robot Analysis Total . | . . . . Derelict Logs Recovered 1 | . . . 1 Drone Launches . | . . . . Drone Recoveries . | . . . . Exploration | -11 -10 -9 -9 ------------- Run | Yrd Mat Mat Min Turns Passed 929 | 397 257 144 131 Spaces Moved 859 | 166 259 191 243 Core 6 | 5 . . 1 Treads . | . . . . Legs 224 | 161 63 . . Wheels . | . . . . Hover . | . . . . Flight 629 | . 196 191 242 Fastest Speed 37 | 50 37 37 37 Average Speed 63 | 117 58 54 37 Slowest Speed 200 | 120 200 117 50 Overloaded Moves . | . . . . Propulsion Burnouts . | . . . . Robots Hopped 14 | . 1 2 11 Cave-ins Triggered . | . . . . Exploration Rate (%) 25 | 7 26 22 46 Regions Visited 3 Branch Regions 1 Pre-discovered Areas . | . . . . Known Exits Taken . | . . . . Unknown Exits Taken 3 | 1 1 1 . Scrap Searched 2 | . . . 2 Spaces Dug . | . . . . Terrain Destroyed 53 | . . 6 47 Melee . | . . . . Projectile . | . . . . AOE 53 | . . 6 47 Terrain Rammed . | . . . . Walls Destroyed . | . . . . Machines Disabled . | . . . . Actions | -11 -10 -9 -9 --------- Run | Yrd Mat Mat Min Total 1173 | 357 342 220 254 Wait 228 | 176 42 8 2 Move 833 | 165 256 186 226 Hop 9 | . 1 2 6 Pick Up 12 | 5 5 2 . Fast Attach 18 | 5 3 6 4 Attach 6 | 1 2 . 3 Detach 3 | . 3 . . Swap 5 | . 4 1 . Drop 19 | 1 9 7 2 Fire 40 | 4 17 8 11 Melee . | . . . . Ram . | . . . . Kick . | . . . . Crush . | . . . . Escape Stasis . | . . . . Rewire . | . . . . Trap . | . . . . Miscellaneous . | . . . . Route ------- -11/Scrapyard -10/Materials -9/Materials -9/Mines History --------- Turn | Location | Event 3 | -11/Scrapyard | Discovered new exit (range 15) 398 | -11/Scrapyard | Entered Materials 399 | -10/Materials | Build established: Mutant 653 | -10/Materials | Discovered new exit (range 5) 655 | -10/Materials | Entered another Materials area 655 | -9/Materials | Evolved 2 slots: Utility x2 784 | -9/Materials | Discovered new exit (range 11) 799 | -9/Materials | Entered Mines 827 | -9/Mines | Lost 3 parts (1p1u1w) 875 | -9/Mines | Learned Materials terminal intel 913 | -9/Mines | Assembled infested the area 927 | -9/Mines | Core integrity fell below 50% 929 | -9/Mines | Core integrity fell below 20% 930 | -9/Mines | Destroyed by as-42569 with Assembled Blade Last Messages --------------- 00879_ Destroyed Flight Unit. 00882_ G-34 Mercenary destroyed. 00882_ Core Extractor disabled. 00884_ The unstable cave ceiling collapses. 00885_ G-47 Trooper destroyed. 00890_ Lgt. Deuterium Engine destroyed. 00894_ Core Extractor disabled. 00897_ The unstable cave ceiling collapses. 00897_ Dropped Rocket Launcher. 00897_ Acquired Rocket Launcher. 00899_ Dropped Rocket Launcher. 00899_ Acquired 24 matter. 00901_ The unstable cave ceiling collapses. 00913_ ALERT: Infestation in the mines, dispatching Demolisher response squad. 00924_ Imp. Terrain Scanner destroyed. 00924_ Sml. Laser destroyed. 00925_ Flight Unit destroyed. 00930_ Visual Processing Unit destroyed. 00930_ System corrupted by crushing effect (+5). Map ----- +----------------------------------------------------+ | ????????????????# ????????????????????? | | ????????????????? ###?????????????????? | | ???###??????????? #?????????????????? | | ??## ######?????## ##????????????????? | | ??# ##??### ##???????????????? | | ??## #### #?##????????????? | | ??????# ## ############????? | | ???????# #????? | | ??#???## ###### | | ?????## ########### [* | | ???### ##????????# ###### | | ??## ###????? ????# | | ??# ##??? ??? | | ??# #### #??# #?? | | ??## ## ##??## ##??## #??? | | ???#??## ##???#####????### ##?? | | ???????## ####???????????## ??# | | ????????### #######?????## ?? | | ??????????## ##??????###??## | | ??????#????# #????????????? | | ???????????## ##???????????? | | ????????????### #????#?#????? | | ????#?????????# #???????????? | | ?????????????## ##?????????? ? | | ??????????####aaaaa ##????????????? | | ???????#### @a ## ##?????????????? | | ??????## aaaa ##?###??????????????? | | ??????# a a ##???????????????????? | | ??????# a a###????????????????????? | | ??????## #??????????????????????? | | ???????## #??????????????????????? | | ????????## #??????????????????????? | | ?????????## < ??????????????????????? | | ??????????# #??????????????????????? | | ??????????# #??????????????????????? | | ??????????## ##??????????????????????? | | ???????????###????????????????????????# | | ?????????????????????????????????????## | | ?????????????????????????????????????# | | ?????????????????????????????????????# | | ?????????????????????????????????????# | | ?????????????????????????????????????# | | ?????????????????????????????????????# | | ?????????????????????????????????????## | | ??????????????????????????????????????# | | ??????????????????????????????????????? | | ??????????????????????????????????????? | | ??????????????????????????????????????? | | ??????????????????????????????????????? | | ??????????????????????????????????????? | +----------------------------------------------------+ Best States ------------- Heat Dissipation 28 Energy Generation 14 Energy Capacity 250 Matter Stores 300 Matter Capacity 300 Sight Range 18 Robot Scan Range 14 Terrain Scan Range 16 Terrain Scan Density 10 Evasion (%) 62 Item Schematics ----------------- None Robot Schematics ------------------ None Fabricated ------------ Nothing Alien Tech Used ----------------- None Achievements -------------- None Challenges ------------ None Game ------ Seed DisruptionArchitectGuard Manual? 0 Play Time 00:10:08 Cumulative 35.7 hours Start 2024.04.01 @ 00:30:21 End 2024.04.01 @ 00:39:11 Sessions 1 Manual Loads 0 Difficulty Rogue Special Mode None Game No. 79 Rogue 79 Adventurer 0 Explorer 0 Win Type - Total 0 Types 0/0/0/0/0/0/0/0/0 Lore% 20 Gallery% 29 Achievement% 25 Wizard Run 0 Options --------- Layout 0 ASCII 0 Keyboard 1 Movement Numpad Keybinds 0 Fullscreen 1 Font 18/X11 Map View 76x50 Zoom Use 0% Tactical HUD 1 Map Filters NONE Filters NONE Steam 1 RUN: 76d06e9f-c9c8-4a7a-b5b1-b1fb316cd6a8